bitfinex/quotes_BTCUSD_20241208
["timestamp","ask_amount","ask_price","bid_price","bid_amount"]
[1733670086166,0.00017242,99831.0,99830.0,0.28341283]
[1733670086379,0.00017242,99831.0,99830.0,0.28641283]
[1733670086828,0.00017242,99831.0,99830.0,0.28541283]
[1733670087251,0.00017242,99831.0,99830.0,0.28641283]
[1733670096093,0.0017306,99860.0,99849.0,0.353272]
[1733670096371,0.00178818,99850.0,99849.0,0.45330151]
[1733670098528,0.00178818,99850.0,99849.0,0.50730151]
[1733670098774,0.00178818,99850.0,99849.0,0.50330151]
[1733670099187,0.00278818,99850.0,99849.0,0.51230151]
[1733670099616,0.00278818,99850.0,99849.0,0.51730151]
[1733670101213,0.00278818,99850.0,99849.0,0.57563241]
[1733670101588,0.00278818,99850.0,99849.0,0.6652045]
[1733670101794,0.00278818,99850.0,99849.0,0.57563241]
[1733670103775,0.00278818,99850.0,99849.0,0.59517644]
[1733670104594,0.00278818,99850.0,99849.0,0.62628634]
[1733670106749,0.00278818,99850.0,99849.0,0.59517644]
[1733670109230,0.0808,99850.0,99849.0,0.08193893]
[1733670109435,0.0808,99850.0,99849.0,0.014]
[1733670109671,0.26107,99850.0,99849.0,0.014]
[1733670110311,0.26107,99850.0,99849.0,0.009]
[1733670111334,0.26107,99850.0,99831.0,0.180303]
[1733670111564,0.26207,99850.0,99831.0,0.180303]
[1733670111765,0.26107,99850.0,99831.0,0.180303]
[1733670111971,0.0808,99850.0,99836.0,0.28032451]
[1733670112178,0.0808,99850.0,99836.0,0.10002951]
[1733670112179,0.001,99850.0,99836.0,0.10002951]
[1733670112388,0.180254,99859.0,99840.0,0.180286]
[1733670112604,0.180254,99859.0,99841.0,0.10002951]
[1733670112605,0.180262,99855.0,99841.0,0.10002951]
[1733670112814,0.001,99850.0,99841.0,0.10002951]
[1733670113023,0.180262,99855.0,99841.0,0.10002951]
[1733670114633,0.180262,99855.0,99836.0,5.758e-05]
[1733670114634,0.0017306,99860.0,99836.0,5.758e-05]
[1733670114833,0.180276,99847.0,99837.0,0.10002951]
[1733670115441,0.180269,99851.0,99837.0,0.10002951]
[1733670116670,0.181269,99851.0,99837.0,0.10002951]
[1733670117079,0.85303119,99951.0,99837.0,0.10002951]
[1733670117302,0.10002951,99892.0,99861.0,0.05]
[1733670117515,0.180237,99869.0,99861.0,0.05]
[1733670117711,0.180219,99879.0,99861.0,0.05]
[1733670118570,0.180215,99881.0,99861.0,0.05]
[1733670118989,0.009,99879.0,99861.0,0.051]
[1733670119352,0.36043,99881.0,99861.0,0.05]
[1733670119625,0.006,99879.0,99861.0,0.051]
[1733670119798,0.180219,99878.0,99861.0,0.051]
[1733670120026,0.006,99879.0,99861.0,0.051]
[1733670120233,0.006,99879.0,99875.0,0.05]
[1733670121073,0.002,99881.0,99875.0,0.05]
[1733670121469,0.008,99881.0,99875.0,0.05]
[1733670121663,0.00017276,99881.0,99875.0,0.05]
[1733670121873,0.002,99878.0,99875.0,0.05]
[1733670122454,0.00017276,99881.0,99875.0,0.05]
[1733670122651,0.00717276,99881.0,99875.0,0.05]
[1733670123061,0.00217276,99881.0,99875.0,0.05]
[1733670123252,0.00017276,99881.0,99875.0,0.05]
[1733670123456,0.002,99878.0,99875.0,0.05]
[1733670124516,0.006,99878.0,99875.0,0.05]
[1733670124891,0.004,99878.0,99875.0,0.05]
[1733670126248,0.006,99878.0,99875.0,0.05]
[1733670127394,0.006,99878.0,99876.0,0.180223]
[1733670127625,0.006,99878.0,99877.0,0.1]
[1733670128073,0.004,99878.0,99877.0,0.1]
[1733670128345,0.004,99878.0,99877.0,0.20002951]
[1733670128573,0.001,99878.0,99877.0,0.20002951]
[1733670128797,0.003,99878.0,99877.0,0.86043659]
[1733670129012,0.003,99878.0,99877.0,0.6813225]
[1733670129224,0.001731,99880.0,99879.0,0.05]
[1733670129435,0.001731,99880.0,99879.0,0.30002951]
[1733670129688,0.001731,99880.0,99879.0,0.6813225]
[1733670130106,0.001731,99880.0,99879.0,0.86081273]
[1733670130379,0.001731,99880.0,99879.0,0.6813225]
[1733670130882,0.001731,99880.0,99879.0,0.86073564]
[1733670131118,0.001731,99880.0,99879.0,0.86073628]
[1733670131350,0.001731,99880.0,99879.0,0.68126993]
[1733670131808,0.001731,99880.0,99879.0,0.68326993]
[1733670132322,0.001731,99880.0,99879.0,0.68126993]
[1733670132741,0.001731,99880.0,99879.0,0.68526993]
[1733670133199,0.002731,99880.0,99879.0,0.69326993]
[1733670133487,0.002731,99880.0,99879.0,0.7161645]
[1733670133705,0.002731,99880.0,99879.0,0.7974645]
[1733670134610,0.002731,99880.0,99879.0,1.02172524]
[1733670134851,0.002731,99880.0,99879.0,0.7974645]
[1733670136979,0.002731,99880.0,99879.0,1.02162178]
[1733670138424,0.002731,99880.0,99879.0,0.7974645]
[1733670138840,0.002731,99880.0,99879.0,0.6931645]
[1733670140993,0.002731,99880.0,99879.0,0.112]
[1733670141175,0.17772296,99886.0,99879.0,0.012]
[1733670141402,0.180207,99885.0,99879.0,0.012]
[1733670141564,0.00865708,99918.0,99867.0,0.28966489]
[1733670141565,0.0609,99883.0,99867.0,0.28966489]
[1733670141783,0.180234,99870.0,99867.0,0.1391]
[1733670141949,0.10002951,99869.0,99867.0,0.1391]
[1733670142330,0.10002951,99869.0,99833.0,0.08966489]
[1733670142331,0.180273,99849.0,99833.0,0.08966489]
[1733670142537,0.180273,99849.0,99831.0,0.09875473]
[1733670142745,0.180273,99849.0,99831.0,0.00903904]
[1733670143173,0.082,99859.0,99845.0,0.1]
[1733670143383,0.180255,99858.0,99845.0,0.1]
[1733670143639,0.180234,99870.0,99849.0,0.1]
[1733670143843,0.180243,99865.0,99851.0,0.05]
[1733670144076,0.180236,99869.0,99852.0,0.05]
[1733670144524,0.262231,99872.0,99857.0,0.05]
[1733670145270,0.442462,99872.0,99857.0,0.05]
[1733670145482,0.180238,99868.0,99857.0,0.05]
[1733670145691,0.180238,99868.0,99857.0,0.051]
[1733670145904,0.180238,99868.0,99857.0,0.05]
[1733670146366,0.180238,99868.0,99857.0,0.051]
[1733670146582,0.180238,99868.0,99857.0,0.05]
[1733670147023,0.183238,99868.0,99857.0,0.05]
[1733670147890,0.185238,99868.0,99857.0,0.05]
[1733670148585,0.180246,99864.0,99857.0,0.05]
[1733670150093,0.002,99864.0,99857.0,0.05]
[1733670150864,0.003,99864.0,99857.0,0.05]
[1733670151979,0.180246,99863.0,99857.0,0.05]
[1733670152178,0.180246,99863.0,99854.0,0.05]
[1733670152419,0.180246,99863.0,99853.0,0.05]
[1733670152767,0.180246,99863.0,99854.0,0.05]
[1733670154254,0.181246,99863.0,99854.0,0.05]
[1733670154709,0.180246,99863.0,99854.0,0.05]
[1733670154908,0.182246,99863.0,99854.0,0.05]
[1733670155121,0.181246,99863.0,99854.0,0.05]
[1733670155572,0.183246,99863.0,99854.0,0.05]
[1733670157360,0.003,99863.0,99854.0,0.05]
[1733670157563,0.183247,99863.0,99854.0,0.05]
[1733670157979,0.180248,99862.0,99854.0,0.05]
[1733670159107,0.18025,99861.0,99853.0,0.05]
[1733670159742,0.180268,99852.0,99850.0,0.0008644]
[1733670161004,0.180268,99852.0,99850.0,0.0018644]
[1733670162065,0.180268,99852.0,99850.0,0.0048644]
[1733670162894,0.180268,99852.0,99850.0,0.0018644]
[1733670163304,0.182268,99852.0,99850.0,0.0008644]
[1733670163714,0.183268,99852.0,99850.0,0.0008644]
[1733670168397,0.003,99852.0,99850.0,0.0008644]
[1733670172236,0.003,99852.0,99851.0,0.2475]
[1733670172435,0.003,99852.0,99851.0,0.2975]
[1733670173231,0.002,99852.0,99851.0,0.2975]
[1733670174088,0.180236,99869.0,99852.0,0.330266]
[1733670174298,0.180236,99869.0,99863.0,0.05]
[1733670175660,0.188236,99869.0,99863.0,0.051]
[1733670175867,0.188236,99869.0,99863.0,0.05]
[1733670175868,0.184236,99869.0,99863.0,0.05]
[1733670176289,0.191236,99869.0,99863.0,0.051]
[1733670176508,0.187236,99869.0,99863.0,0.051]
[1733670176718,0.189236,99869.0,99863.0,0.051]
[1733670177262,0.187236,99869.0,99863.0,0.051]
[1733670177471,0.180236,99869.0,99863.0,0.05]
[1733670177673,0.185236,99869.0,99863.0,0.051]
[1733670177870,0.187236,99869.0,99863.0,0.051]
[1733670178078,0.187236,99869.0,99857.0,0.15]
[1733670178079,0.22872951,99868.0,99857.0,0.15]
[1733670178292,0.002,99869.0,99830.0,0.0009257]
[1733670178293,0.1287,99851.0,99839.0,0.08957928]
[1733670178502,0.1287,99851.0,99830.0,0.22487392]
[1733670178503,0.180275,99847.0,99830.0,0.09050498]
[1733670178721,0.10002951,99846.0,99830.0,0.0009257]
[1733670179605,0.11993238,99846.0,99830.0,0.0009257]
[1733670180863,0.12393238,99846.0,99830.0,0.0009257]
[1733670181071,0.10402951,99846.0,99830.0,0.0009257]
[1733670181279,0.10402951,99846.0,99845.0,0.00105758]
[1733670181280,0.004,99846.0,99845.0,0.00105758]
[1733670182147,0.004,99846.0,99845.0,5.758e-05]
[1733670182365,0.011,99846.0,99845.0,5.758e-05]
[1733670182833,0.180275,99847.0,99845.0,5.758e-05]
[1733670183063,0.009,99846.0,99845.0,5.758e-05]
[1733670183274,0.004,99846.0,99845.0,5.758e-05]
[1733670183690,0.005,99846.0,99845.0,5.758e-05]
[1733670184774,0.007,99846.0,99845.0,5.758e-05]
[1733670187086,0.10702951,99846.0,99845.0,5.758e-05]
[1733670190098,0.10702951,99846.0,99807.0,0.08984043]
[1733670190099,0.023,99812.0,99807.0,0.08984043]
[1733670190311,0.023,99807.0,99803.0,0.0103]
[1733670190601,0.28037851,99806.0,99803.0,0.0103]
[1733670190837,0.30775811,99806.0,99805.0,0.00063518]
[1733670191062,0.30775811,99806.0,99803.0,0.0103]
[1733670191063,0.30337851,99806.0,99803.0,0.0103]
[1733670191287,0.203395,99781.0,99780.0,0.0008653]
[1733670191499,0.28042451,99781.0,99780.0,0.0008653]
[1733670193272,0.28942451,99781.0,99780.0,0.0008653]
[1733670193704,0.28042451,99781.0,99780.0,0.0008653]
[1733670193918,0.28342451,99781.0,99780.0,0.0008653]
[1733670194363,0.28842451,99781.0,99780.0,0.0008653]
[1733670194781,0.29142451,99781.0,99780.0,0.0008653]
[1733670195420,0.31442451,99781.0,99780.0,0.0008653]
[1733670196278,0.30642451,99781.0,99780.0,0.0008653]
[1733670196482,0.31442451,99781.0,99780.0,0.0008653]
[1733670196690,0.31142451,99781.0,99780.0,0.0008653]
[1733670196895,0.30342451,99781.0,99780.0,0.0008653]
[1733670197089,0.31542451,99781.0,99780.0,0.0008653]
[1733670197460,0.31142451,99781.0,99780.0,0.0008653]
[1733670197679,0.31442451,99781.0,99780.0,0.0008653]
[1733670197990,0.30642451,99781.0,99780.0,0.0008653]
[1733670198415,0.30342451,99781.0,99780.0,0.0008653]
[1733670198849,0.38892451,99781.0,99780.0,0.0008653]
[1733670199221,0.39692451,99781.0,99780.0,0.0008653]
[1733670199426,0.47274736,99781.0,99780.0,0.0008653]
[1733670199831,0.48174736,99781.0,99780.0,0.0008653]
[1733670200040,0.47274736,99781.0,99780.0,0.0008653]
[1733670200235,0.46874736,99781.0,99780.0,0.0008653]
[1733670200437,0.48890954,99781.0,99780.0,0.0008653]
[1733670200644,0.48490954,99781.0,99780.0,0.0008653]
[1733670201179,0.48890954,99781.0,99780.0,0.0008653]
[1733670201289,0.49590954,99781.0,99780.0,0.0018653]
[1733670201504,0.52721163,99781.0,99780.0,0.0018653]
[1733670201723,0.66604945,99781.0,99780.0,3e-07]
[1733670201929,0.66604945,99781.0,99770.0,0.0008642]
[1733670201930,0.180413,99771.0,99770.0,0.0008642]
[1733670202137,0.3347446,99771.0,99770.0,0.0008642]
[1733670202344,0.023,99770.0,99737.0,0.05]
[1733670202601,0.30345451,99764.0,99737.0,0.05]
[1733670203048,0.38155451,99764.0,99737.0,0.05]
[1733670203269,0.38212933,99764.0,99737.0,0.05]
[1733670203692,0.35912933,99764.0,99737.0,0.05]
[1733670203894,0.36712933,99764.0,99737.0,0.05]
[1733670204650,0.28902933,99764.0,99741.0,0.180466]
[1733670204851,0.29302933,99764.0,99741.0,0.180466]
[1733670205278,0.29302933,99764.0,99737.0,0.05]
[1733670205977,0.203449,99751.0,99730.0,0.0008653]
[1733670206177,0.30347851,99751.0,99730.0,0.0008653]
[1733670207016,0.3347806,99751.0,99730.0,0.0008653]
[1733670207452,0.3447806,99751.0,99730.0,0.0008653]
[1733670207666,0.3447806,99751.0,99715.0,0.00501515]
[1733670207667,0.43209193,99751.0,99715.0,0.00501515]
[1733670207891,0.180512,99716.0,99715.0,0.00501515]
[1733670208075,0.180512,99716.0,99705.0,0.00313463]
[1733670208076,0.180521,99711.0,99705.0,0.00313463]
[1733670208281,0.10186795,99750.0,99705.0,0.00313463]
[1733670208282,0.18048,99734.0,99714.0,0.05]
[1733670208530,0.180468,99741.0,99721.0,0.0772]
[1733670208752,0.01,99751.0,99721.0,0.0772]
[1733670208753,0.10002951,99740.0,99723.0,0.180499]
[1733670208965,0.10002951,99740.0,99728.0,0.18049]
[1733670209166,0.180452,99749.0,99700.0,0.000865]
[1733670209167,0.006,99716.0,99700.0,0.000865]
[1733670209367,0.10002951,99731.0,99700.0,0.000865]
[1733670209368,0.1805,99723.0,99703.0,0.1259]
[1733670209514,0.10002951,99722.0,99704.0,0.00313504]
[1733670209925,0.180509,99718.0,99704.0,0.00313504]
[1733670210116,0.28053851,99718.0,99715.0,0.001]
[1733670210547,0.001,99716.0,99715.0,0.001]
[1733670210749,0.28053851,99718.0,99704.0,0.00313504]
[1733670210954,0.28053851,99718.0,99705.0,0.180532]
[1733670211160,0.28053851,99718.0,99706.0,0.00313504]
[1733670211559,0.28053851,99718.0,99707.0,0.180528]
[1733670211560,0.10002951,99718.0,99707.0,0.180528]
[1733670211877,0.001,99722.0,99703.0,0.14549879]
[1733670211878,0.001,99722.0,99710.0,0.05]
[1733670212235,0.003,99722.0,99719.0,0.180507]
[1733670212446,0.180476,99737.0,99721.0,0.180503]
[1733670212695,0.10002951,99736.0,99721.0,0.180503]
[1733670212930,0.180478,99735.0,99722.0,0.18363546]
[1733670213096,0.10002951,99734.0,99722.0,0.18363546]
[1733670213253,0.180481,99733.0,99723.0,0.00313446]
[1733670213462,0.10002951,99732.0,99723.0,0.02349754]
[1733670213866,0.002,99737.0,99724.0,0.0772]
[1733670214069,0.004,99736.0,99725.0,0.0487]
[1733670214293,0.004,99736.0,99733.0,0.18048]
[1733670214959,0.004,99736.0,99733.0,0.360961]
[1733670215489,0.00057482,99740.0,99739.0,0.180471]
[1733670216289,0.00057482,99740.0,99739.0,0.230471]
[1733670216447,0.00057482,99740.0,99739.0,0.280471]
[1733670217147,0.00057482,99740.0,99739.0,0.556371]
[1733670217517,0.00057482,99740.0,99739.0,0.57873584]
[1733670218648,0.00157482,99740.0,99739.0,0.57873584]
[1733670218845,0.00157482,99740.0,99739.0,0.57673584]
[1733670219068,0.00057482,99740.0,99739.0,0.57673584]
[1733670219248,0.00157482,99740.0,99739.0,0.57973584]
[1733670219649,0.00330762,99740.0,99739.0,0.57973584]
[1733670219856,0.00330762,99740.0,99739.0,0.57673584]
[1733670220059,0.00230762,99740.0,99739.0,0.57673584]
[1733670220414,0.00230762,99740.0,99739.0,0.57973584]
[1733670220549,0.00330762,99740.0,99739.0,0.57973584]
[1733670221543,0.00230762,99740.0,99739.0,0.57973584]
[1733670221969,0.00330762,99740.0,99739.0,0.57673584]
[1733670222204,0.00330762,99740.0,99739.0,0.57973584]
[1733670224519,0.00330762,99740.0,99739.0,0.003]
[1733670224520,0.10333713,99740.0,99739.0,0.003]
[1733670224956,0.360942,99739.0,99725.0,0.0775]
[1733670225131,0.180484,99732.0,99725.0,0.0775]
[1733670225360,0.180484,99732.0,99727.0,0.02038203]
[1733670225769,0.180484,99732.0,99728.0,0.00313444]
[1733670226178,0.180484,99732.0,99727.0,0.02038203]
[1733670226510,0.006,99732.0,99727.0,0.02038203]
[1733670226711,0.006,99732.0,99725.0,0.0775]
[1733670226940,0.180485,99731.0,99725.0,0.0775]
[1733670227141,0.180485,99731.0,99724.0,0.0492]
[1733670227612,0.180493,99727.0,99724.0,0.0492]
[1733670227814,0.180502,99722.0,99709.0,0.0492]
[1733670228017,0.002,99732.0,99711.0,0.05]
[1733670228219,0.180506,99720.0,99711.0,0.05]
[1733670228412,0.180506,99720.0,99716.0,0.02038391]
[1733670229454,0.180499,99724.0,99716.0,0.02038391]
[1733670229667,0.001,99720.0,99716.0,0.02038391]
[1733670230712,0.11817941,99719.0,99686.0,0.05]
[1733670230922,0.11817941,99719.0,99683.0,0.083]
[1733670230923,0.180539,99701.0,99683.0,0.133]
[1733670231154,0.180539,99701.0,99690.0,0.05]
[1733670231783,0.180539,99701.0,99694.0,0.02002084]
[1733670232299,0.180539,99701.0,99690.0,0.05]
[1733670232300,0.28214298,99701.0,99690.0,0.05]
[1733670232708,0.28214298,99701.0,99700.0,0.00800048]
[1733670233060,0.28114298,99701.0,99700.0,0.00400048]
[1733670233500,0.00357447,99701.0,99700.0,0.00400048]
[1733670234258,0.00357447,99701.0,99700.0,0.000865]
[1733670234479,0.01057447,99701.0,99700.0,0.000865]
[1733670234700,0.00057447,99701.0,99700.0,0.000865]
[1733670235108,0.00857447,99701.0,99700.0,0.000865]
[1733670235465,0.00557447,99701.0,99700.0,0.000865]
[1733670235877,0.00757447,99701.0,99700.0,0.000865]
[1733670237759,0.00757447,99701.0,99700.0,0.001166]
[1733670237961,0.00651127,99701.0,99700.0,0.001166]
[1733670239729,0.225466,99695.0,99694.0,2.9e-07]
[1733670239952,0.24554,99688.0,99687.0,0.0003]
[1733670240158,0.32550851,99688.0,99687.0,0.0003]
[1733670240794,0.28059251,99688.0,99687.0,0.0003]
[1733670241299,0.28059251,99688.0,99670.0,0.0009252]
[1733670241300,0.044916,99681.0,99673.0,0.00313636]
[1733670241537,0.32552151,99681.0,99670.0,0.0009252]
[1733670242998,0.48452151,99681.0,99670.0,0.0009252]
[1733670243495,0.60172346,99681.0,99670.0,0.0009252]
[1733670243740,0.50752151,99681.0,99670.0,0.0009252]
[1733670243995,0.52758251,99681.0,99670.0,0.0009252]
[1733670244519,0.52758251,99681.0,99680.0,0.001865]
[1733670244520,0.47452151,99681.0,99680.0,0.001865]
[1733670244762,0.46552151,99681.0,99680.0,0.001865]
[1733670245012,0.46552151,99681.0,99680.0,0.000865]
[1733670245013,0.48058251,99681.0,99680.0,0.000865]
[1733670245294,0.46052151,99681.0,99680.0,0.000865]
[1733670245515,0.49658251,99681.0,99680.0,0.001865]
[1733670245746,0.48758251,99681.0,99680.0,0.001865]
[1733670245980,0.48958251,99681.0,99680.0,0.000865]
[1733670246214,0.48558251,99681.0,99680.0,0.001865]
[1733670246918,0.31552151,99681.0,99680.0,0.001865]
[1733670247124,0.59388251,99681.0,99680.0,0.001865]
[1733670247337,0.56588251,99681.0,99680.0,0.000865]
[1733670247540,0.54582151,99681.0,99680.0,0.000865]
[1733670247949,0.55182151,99681.0,99680.0,0.001865]
[1733670248283,0.63612346,99681.0,99680.0,0.001865]
[1733670248496,0.27460551,99681.0,99680.0,0.000865]
[1733670248703,0.27960551,99681.0,99680.0,0.001865]
[1733670248943,0.27060551,99681.0,99680.0,0.001865]
[1733670249155,0.27960551,99681.0,99680.0,0.001865]
[1733670249404,0.27060551,99681.0,99680.0,0.001865]
[1733670249846,0.27960551,99681.0,99680.0,0.001865]
[1733670250324,0.27960551,99681.0,99680.0,0.000865]
[1733670250325,0.27460551,99681.0,99680.0,0.000865]
[1733670250556,0.26960551,99681.0,99680.0,0.000865]
[1733670251225,0.26560551,99681.0,99680.0,0.000865]
[1733670251470,0.10402951,99681.0,99680.0,0.000865]
[1733670251931,0.180548,99697.0,99680.0,0.000865]
[1733670252152,0.009,99681.0,99680.0,0.181441]
[1733670252373,0.009,99681.0,99680.0,0.000865]
[1733670252823,0.004,99681.0,99680.0,0.076665]
[1733670253260,0.004,99681.0,99680.0,0.106604]
[1733670253700,0.004,99681.0,99680.0,0.156688]
[1733670254385,0.0017308,99690.0,99683.0,0.005084]
[1733670254616,0.0017308,99690.0,99689.0,0.029939]
[1733670256427,0.0017308,99690.0,99689.0,0.035023]
[1733670257622,0.0017308,99690.0,99689.0,0.036023]
[1733670258162,0.0017308,99690.0,99689.0,0.035023]
[1733670258427,0.0017308,99690.0,99689.0,0.036023]
[1733670258682,0.0037308,99690.0,99689.0,0.036023]
[1733670258939,0.0017308,99690.0,99689.0,0.036023]
[1733670259429,0.0017308,99690.0,99689.0,0.035023]
[1733670259673,0.0017308,99690.0,99689.0,0.265823]
[1733670259912,0.0017308,99690.0,99689.0,0.310823]
[1733670260879,0.0017308,99690.0,99689.0,0.312823]
[1733670261371,0.182218,99730.0,99709.0,0.180523]
[1733670261631,0.10002951,99725.0,99709.0,0.185607]
[1733670261923,0.182218,99730.0,99710.0,0.233407]
[1733670262178,0.18049,99728.0,99710.0,0.233407]
[1733670262419,0.10002951,99727.0,99710.0,0.233407]
[1733670262650,0.009,99726.0,99710.0,0.233407]
[1733670262894,0.10002951,99726.0,99720.0,0.0196024]
[1733670263409,0.180496,99725.0,99720.0,0.0196024]
[1733670263675,0.10502951,99726.0,99720.0,0.0196024]
[1733670264200,0.10502951,99726.0,99720.0,0.01977482]
[1733670264422,0.18049,99728.0,99720.0,0.01977482]
[1733670264666,0.003,99726.0,99720.0,0.01977482]
[1733670265274,0.10002951,99727.0,99720.0,0.01977482]
[1733670265529,0.188494,99726.0,99720.0,0.01977482]
[1733670265735,0.182494,99726.0,99720.0,0.01977482]
[1733670265937,0.180494,99726.0,99720.0,0.01977482]
[1733670266139,0.006,99726.0,99720.0,0.01977482]
[1733670266294,0.003,99726.0,99720.0,0.01977482]
[1733670266726,0.009,99726.0,99720.0,0.01977482]
[1733670267786,0.180496,99725.0,99720.0,0.01977482]
[1733670267989,0.180491,99728.0,99720.0,0.01977482]
[1733670268218,0.001,99726.0,99720.0,0.01977482]
[1733670268421,0.006,99726.0,99720.0,0.01977482]
[1733670268625,0.001,99726.0,99720.0,0.01977482]
[1733670268834,0.00173,99730.0,99721.0,0.029939]
[1733670269038,0.00173,99730.0,99720.0,0.01977482]
[1733670269039,0.005,99725.0,99720.0,0.01977482]
[1733670269213,0.180489,99729.0,99721.0,0.029939]
[1733670269652,0.005,99726.0,99721.0,0.029939]
[1733670270070,0.180489,99729.0,99721.0,0.029939]
[1733670270283,0.00173,99730.0,99721.0,0.029939]
[1733670270914,0.001,99726.0,99721.0,0.029939]
[1733670271297,0.00173,99730.0,99721.0,0.029939]
[1733670271522,0.004,99725.0,99721.0,0.029939]
[1733670271656,0.00273,99730.0,99721.0,0.029939]
[1733670271856,0.180489,99729.0,99721.0,0.029939]
[1733670272484,0.360978,99729.0,99721.0,0.029939]
[1733670272658,0.004,99725.0,99721.0,0.029939]
[1733670273103,0.360978,99729.0,99721.0,0.029939]
[1733670273477,0.180496,99725.0,99721.0,0.029939]
[1733670273673,0.180496,99725.0,99720.0,0.01977482]
[1733670273674,0.180489,99729.0,99720.0,0.01977482]
[1733670273923,0.180489,99729.0,99721.0,0.029939]
[1733670274096,0.181489,99729.0,99721.0,0.029939]
[1733670274506,0.180489,99729.0,99721.0,0.029939]
[1733670274672,0.185489,99729.0,99721.0,0.029939]
[1733670274875,0.006,99729.0,99721.0,0.029939]
[1733670275322,0.005,99729.0,99721.0,0.029939]
[1733670275601,0.006,99729.0,99721.0,0.029939]
[1733670276773,0.006,99729.0,99720.0,0.01977482]
[1733670276971,0.005,99729.0,99721.0,0.029939]
[1733670277171,0.006,99729.0,99721.0,0.029939]
[1733670277378,0.006,99729.0,99722.0,0.180501]
[1733670277550,0.006,99729.0,99721.0,0.029939]
[1733670277551,0.006,99729.0,99727.0,0.0813]
[1733670277755,0.005,99729.0,99727.0,0.0813]
[1733670278165,0.005,99729.0,99728.0,0.029939]
[1733670278372,0.005,99729.0,99728.0,0.079739]
[1733670278553,0.001,99729.0,99728.0,0.079739]
[1733670278759,0.006,99729.0,99728.0,0.079739]
[1733670279184,0.001,99729.0,99728.0,0.079739]
[1733670279535,0.006,99729.0,99728.0,0.079739]
[1733670279739,0.001,99729.0,99728.0,0.079739]
[1733670279940,0.00173,99730.0,99728.0,0.079739]
[1733670279941,0.00173,99730.0,99729.0,0.210428]
[1733670280147,0.00173,99730.0,99729.0,0.215512]
[1733670281759,0.00373,99730.0,99729.0,0.215512]
[1733670283494,0.00373,99730.0,99729.0,0.216512]
[1733670283972,0.00373,99730.0,99729.0,0.366512]
[1733670284449,0.00373,99730.0,99729.0,0.448012]
[1733670284699,0.00373,99730.0,99729.0,0.54804151]
[1733670284929,0.00373,99730.0,99729.0,0.54704151]
[1733670285181,0.00173,99730.0,99729.0,0.54704151]
[1733670286672,0.00173,99730.0,99729.0,0.55004151]
[1733670287603,0.00173,99730.0,99729.0,0.54704151]
[1733670288012,0.00273,99730.0,99729.0,0.55104151]
[1733670288443,0.00373,99730.0,99729.0,0.55104151]
[1733670288657,0.00273,99730.0,99729.0,0.55104151]
[1733670288925,0.00273,99730.0,99729.0,0.451012]
[1733670289170,0.00273,99730.0,99729.0,0.446012]
[1733670289171,0.00373,99730.0,99729.0,0.446012]
[1733670289662,0.00273,99730.0,99729.0,0.442012]
[1733670289904,0.00273,99730.0,99729.0,0.445012]
[1733670290390,0.00173,99730.0,99729.0,0.442012]
[1733670290596,0.00173,99730.0,99729.0,0.445012]
[1733670291022,0.00173,99730.0,99729.0,0.111523]
[1733670291436,0.00273,99730.0,99729.0,0.114523]
[1733670291778,0.00373,99730.0,99729.0,0.114523]
[1733670291980,0.00273,99730.0,99729.0,0.114523]
[1733670293075,0.00273,99730.0,99729.0,0.111523]
[1733670293281,0.00173,99730.0,99729.0,0.111523]
[1733670293480,0.00173,99730.0,99729.0,0.114523]
[1733670294136,0.00173,99730.0,99729.0,0.111523]
[1733670294354,0.00173,99730.0,99729.0,0.113523]
[1733670294781,0.00173,99730.0,99729.0,0.111523]
[1733670295216,0.00173,99730.0,99729.0,0.114523]
[1733670296418,0.00173,99730.0,99729.0,0.111523]
[1733670296750,0.00173,99730.0,99729.0,0.113523]
[1733670297382,0.00173,99730.0,99729.0,0.111523]
[1733670297587,0.00173,99730.0,99729.0,0.114523]
[1733670299601,0.00173,99730.0,99729.0,0.111523]
[1733670300019,0.00173,99730.0,99729.0,0.113523]
[1733670300662,0.00173,99730.0,99729.0,0.024939]
[1733670300865,0.00173,99730.0,99729.0,0.027939]
[1733670301405,0.00173,99730.0,99729.0,0.024939]
[1733670302233,0.00273,99730.0,99729.0,0.024939]
[1733670302467,0.00173,99730.0,99729.0,0.024939]
[1733670302811,0.00373,99730.0,99729.0,0.024939]
[1733670303057,0.00173,99730.0,99729.0,0.025939]
[1733670303532,0.00273,99730.0,99729.0,0.025939]
[1733670303698,0.00273,99730.0,99729.0,0.024939]
[1733670304102,0.00173,99730.0,99729.0,0.024939]
[1733670304284,0.00173,99730.0,99729.0,0.025939]
[1733670304752,0.00173,99730.0,99729.0,0.024939]
[1733670304902,0.00173,99730.0,99725.0,0.024939]
[1733670305113,0.00173,99730.0,99729.0,0.024939]
[1733670305549,0.00473,99730.0,99729.0,0.024939]
[1733670305737,0.00173,99730.0,99729.0,0.024939]
[1733670306112,0.00573,99730.0,99729.0,0.024939]
[1733670306317,0.00173,99730.0,99729.0,0.024939]
[1733670307148,0.00373,99730.0,99729.0,0.024939]
[1733670307960,0.00373,99730.0,99729.0,0.025939]
[1733670308568,0.00173,99730.0,99729.0,0.025939]
[1733670308976,0.00373,99730.0,99729.0,0.025939]
[1733670310756,0.00373,99730.0,99726.0,0.024939]
[1733670310958,0.00373,99730.0,99722.0,0.024939]
[1733670311379,0.00373,99730.0,99720.0,0.03056374]
[1733670311594,0.180489,99729.0,99722.0,0.024939]
[1733670312004,0.180489,99729.0,99720.0,0.03056374]
[1733670312005,0.180496,99725.0,99720.0,0.03056374]
[1733670312249,0.180499,99723.0,99720.0,0.00017242]
[1733670312424,0.180503,99721.0,99720.0,0.00017242]
[1733670312630,0.28053251,99721.0,99720.0,0.00017242]
[1733670313036,0.35683251,99721.0,99720.0,0.00017242]